[Event "*** Qualifier 1: Titled Tuesday 3|2 Blitz"]
[Site "Chess.com"]
[Date "2017.04.04"]
[Round "2"]
[White "OparinGrigoriy"]
[Black "RitvarsReimanis"]
[Result "1/2-1/2"]
[WhiteElo "2589"]
[BlackElo "2431"]
[TimeControl "180+2"]
[EndTime "13:26:13 PDT"]
[Termination "Game drawn - insufficient material"]

1. e4 {[%clk 0:03:02]} 1... c5 {[%clk 0:02:58.7]} 2. Nf3 {[%clk 0:03:02.4]} 2...
Nc6 {[%clk 0:02:59.8]} 3. d4 {[%clk 0:03:03.7]} 3... cxd4 {[%clk 0:03:01.7]} 4.
Nxd4 {[%clk 0:03:05.6]} 4... Nf6 {[%clk 0:03:03.2]} 5. Nc3 {[%clk 0:03:06.6]}
5... d6 {[%clk 0:03:04.6]} 6. Bg5 {[%clk 0:03:06.1]} 6... e6 {[%clk 0:03:06.2]}
7. Qd2 {[%clk 0:03:07]} 7... a6 {[%clk 0:03:07.6]} 8. O-O-O {[%clk 0:03:07.9]}
8... Bd7 {[%clk 0:03:09.1]} 9. f3 {[%clk 0:03:09.4]} 9... h6 {[%clk 0:03:10.6]}
10. Be3 {[%clk 0:03:09.8]} 10... Rc8 {[%clk 0:03:11.9]} 11. Kb1 {[%clk
0:03:11.2]} 11... b5 {[%clk 0:03:12.5]} 12. Nxc6 {[%clk 0:03:12.7]} 12... Bxc6
{[%clk 0:03:14.3]} 13. Ne2 {[%clk 0:03:14.3]} 13... e5 {[%clk 0:03:15.2]} 14.
Nc3 {[%clk 0:03:04.1]} 14... Be7 {[%clk 0:03:12.7]} 15. g4 {[%clk 0:03:05]}
15... Qa5 {[%clk 0:03:10.1]} 16. a3 {[%clk 0:03:01.5]} 16... Qc7 {[%clk
0:02:43.8]} 17. h4 {[%clk 0:03:00.5]} 17... Qb7 {[%clk 0:02:43.5]} 18. Bd3
{[%clk 0:02:53.4]} 18... b4 {[%clk 0:02:43]} 19. axb4 {[%clk 0:02:54.3]} 19...
Qxb4 {[%clk 0:02:43.9]} 20. g5 {[%clk 0:02:55.8]} 20... Nh5 {[%clk 0:02:41.2]}
21. gxh6 {[%clk 0:02:53.8]} 21... g6 {[%clk 0:02:42.5]} 22. Nd5 {[%clk
0:02:51.7]} 22... Qxd2 {[%clk 0:02:39]} 23. Rxd2 {[%clk 0:02:53.6]} 23... Bxd5
{[%clk 0:02:27.2]} 24. exd5 {[%clk 0:02:55.5]} 24... a5 {[%clk 0:02:25]} 25. c3
{[%clk 0:02:40.4]} 25... f5 {[%clk 0:02:19.3]} 26. Kc2 {[%clk 0:02:36.4]} 26...
Kf7 {[%clk 0:02:16.1]} 27. Ra1 {[%clk 0:02:32.3]} 27... Ra8 {[%clk 0:02:09.1]}
28. Bg5 {[%clk 0:02:32.9]} 28... Nf4 {[%clk 0:01:56.7]} 29. Bb5 {[%clk 0:02:33]}
29... Nh3 {[%clk 0:01:48.5]} 30. Bc6 {[%clk 0:02:31.2]} 30... Ra7 {[%clk
0:01:41]} 31. b4 {[%clk 0:02:29.9]} 31... Nxg5 {[%clk 0:01:40.4]} 32. hxg5
{[%clk 0:02:30.8]} 32... Bxg5 {[%clk 0:01:41.8]} 33. Rg2 {[%clk 0:02:32]} 33...
Bd8 {[%clk 0:01:40.8]} 34. Rh2 {[%clk 0:02:27.7]} 34... Kf6 {[%clk 0:01:35.7]}
35. Kb3 {[%clk 0:02:20.6]} 35... Rhh7 {[%clk 0:01:30.4]} 36. Rha2 {[%clk
0:02:12.9]} 36... Rxh6 {[%clk 0:01:31]} 37. bxa5 {[%clk 0:02:13]} 37... Rh3
{[%clk 0:01:30]} 38. a6 {[%clk 0:02:14.5]} 38... Rxf3 {[%clk 0:01:30.8]} 39. Kc4
{[%clk 0:02:14.8]} 39... Rf4+ {[%clk 0:01:20]} 40. Kb5 {[%clk 0:02:14.1]} 40...
e4 {[%clk 0:01:17]} 41. Bb7 {[%clk 0:02:08.2]} 41... e3 {[%clk 0:01:10]} 42. Rh2
{[%clk 0:02:02.4]} 42... Re4 {[%clk 0:00:34.6]} 43. Rh8 {[%clk 0:02:01.9]} 43...
Ke7 {[%clk 0:00:34.9]} 44. Bc6 {[%clk 0:01:54.6]} 44... Bc7 {[%clk 0:00:26]} 45.
Re8+ {[%clk 0:01:48]} 45... Kf6 {[%clk 0:00:27.4]} 46. Rxe4 {[%clk 0:01:48.6]}
46... fxe4 {[%clk 0:00:29.3]} 47. Re1 {[%clk 0:01:47.7]} 47... Ke5 {[%clk
0:00:30.5]} 48. Rxe3 {[%clk 0:01:48.7]} 48... Kf4 {[%clk 0:00:32.1]} 49. Re1
{[%clk 0:01:49.4]} 49... e3 {[%clk 0:00:31.1]} 50. Bb7 {[%clk 0:01:43.1]} 50...
Kf3 {[%clk 0:00:29.5]} 51. Kc6 {[%clk 0:01:43.7]} 51... Ba5 {[%clk 0:00:28.4]}
52. Rf1+ {[%clk 0:01:38.9]} 52... Ke4 {[%clk 0:00:21.5]} 53. c4 {[%clk
0:01:32.5]} 53... e2 {[%clk 0:00:20.1]} 54. Rh1 {[%clk 0:01:33]} 54... Kd4
{[%clk 0:00:12.8]} 55. c5 {[%clk 0:00:37.2]} 55... dxc5 {[%clk 0:00:12.7]} 56.
Rh4+ {[%clk 0:00:36.5]} 56... Ke5 {[%clk 0:00:09.7]} 57. Rh1 {[%clk 0:00:37.7]}
57... e1=Q {[%clk 0:00:09.9]} 58. Rxe1+ {[%clk 0:00:38.9]} 58... Bxe1 {[%clk
0:00:11]} 59. Kxc5 {[%clk 0:00:40.5]} 59... g5 {[%clk 0:00:09.7]} 60. d6 {[%clk
0:00:36.7]} 60... Bb4+ {[%clk 0:00:09.4]} 61. Kxb4 {[%clk 0:00:37.8]} 61... Kxd6
{[%clk 0:00:10.8]} 62. Kc4 {[%clk 0:00:33.9]} 62... Ke5 {[%clk 0:00:11]} 63. Kd3
{[%clk 0:00:34.9]} 63... Kd6 {[%clk 0:00:09.8]} 64. Ke3 {[%clk 0:00:35.6]} 64...
Kc7 {[%clk 0:00:11]} 65. Kf3 {[%clk 0:00:36.7]} 65... Rxb7 {[%clk 0:00:11.7]}
66. axb7 {[%clk 0:00:38.5]} 66... Kxb7 {[%clk 0:00:13.6]} 67. Kg4 {[%clk
0:00:39.5]} 67... Kb6 {[%clk 0:00:14.8]} 68. Kxg5 {[%clk 0:00:41.4]} 1/2-1/2

[Event "*** Qualifier 1: Titled Tuesday 3|2 Blitz"]
[Site "Chess.com"]
[Date "2017.04.04"]
[Round "2"]
[White "OldweakGM"]
[Black "AlexanderL"]
[Result "0-1"]
[WhiteElo "2599"]
[BlackElo "2548"]
[TimeControl "180+2"]
[EndTime "13:26:36 PDT"]
[Termination "AlexanderL won on time"]

1. Nf3 {[%clk 0:03:02]} 1... d5 {[%clk 0:02:56.2]} 2. d4 {[%clk 0:03:02.7]} 2...
Nf6 {[%clk 0:02:56.7]} 3. Bf4 {[%clk 0:03:03.7]} 3... c5 {[%clk 0:02:56.4]} 4.
e3 {[%clk 0:03:04.9]} 4... Nc6 {[%clk 0:02:53.4]} 5. c3 {[%clk 0:03:01.5]} 5...
Qb6 {[%clk 0:02:53.9]} 6. Qb3 {[%clk 0:03:02.5]} 6... c4 {[%clk 0:02:54.9]} 7.
Qc2 {[%clk 0:03:03.6]} 7... Bf5 {[%clk 0:02:55.9]} 8. Qc1 {[%clk 0:03:04.9]}
8... Nh5 {[%clk 0:02:57.3]} 9. Bg3 {[%clk 0:03:04.8]} 9... h6 {[%clk 0:02:51.3]}
10. Nbd2 {[%clk 0:03:05.5]} 10... Qd8 {[%clk 0:02:40.2]} 11. Be5 {[%clk
0:02:57.3]} 11... f6 {[%clk 0:02:31.7]} 12. Bg3 {[%clk 0:02:48.3]} 12... e5
{[%clk 0:02:32.7]} 13. Be2 {[%clk 0:02:00.7]} 13... Nxg3 {[%clk 0:02:29.5]} 14.
hxg3 {[%clk 0:02:01.7]} 14... g5 {[%clk 0:02:25.7]} 15. b3 {[%clk 0:01:36.4]}
15... b5 {[%clk 0:02:22.9]} 16. a4 {[%clk 0:01:36.2]} 16... a6 {[%clk
0:02:23.8]} 17. dxe5 {[%clk 0:01:18.5]} 17... Nxe5 {[%clk 0:02:03.7]} 18. Nxe5
{[%clk 0:01:12.9]} 18... fxe5 {[%clk 0:02:03.9]} 19. e4 {[%clk 0:00:38.9]} 19...
dxe4 {[%clk 0:02:03.4]} 20. bxc4 {[%clk 0:00:38.4]} 20... b4 {[%clk 0:02:04.3]}
21. Bh5+ {[%clk 0:00:32.2]} 21... Kd7 {[%clk 0:02:04.8]} 22. Nf1 {[%clk
0:00:33.3]} 22... Kc7 {[%clk 0:01:45.5]} 23. Ne3 {[%clk 0:00:34.3]} 23... Be6
{[%clk 0:01:46.9]} 24. O-O {[%clk 0:00:35]} 24... Bc5 {[%clk 0:01:32.1]} 25.
cxb4 {[%clk 0:00:31]} 25... Bd4 {[%clk 0:01:20.1]} 26. Ra3 {[%clk 0:00:32.1]}
26... Rc8 {[%clk 0:01:18.8]} 27. c5 {[%clk 0:00:31.4]} 27... Kb8 {[%clk
0:01:15.9]} 28. Nc4 {[%clk 0:00:31.4]} 28... Rf8 {[%clk 0:01:08.6]} 29. Nd6
{[%clk 0:00:31.9]} 29... Rxf2 {[%clk 0:00:55.5]} 30. Rxf2 {[%clk 0:00:33.2]}
30... Qxd6 {[%clk 0:00:56.5]} 31. Re3 {[%clk 0:00:32.9]} 31... Bxe3 {[%clk
0:00:51]} 32. Qxe3 {[%clk 0:00:33.4]} 32... Qd4 {[%clk 0:00:52.9]} 33. Re2
{[%clk 0:00:33.4]} 33... Qxb4 {[%clk 0:00:50.9]} 34. Kh2 {[%clk 0:00:31.1]}
34... Rxc5 {[%clk 0:00:50.1]} 35. Rb2 {[%clk 0:00:32]} 35... Qxb2 {[%clk
0:00:49.7]} 36. Qxc5 {[%clk 0:00:33.9]} 36... Qd4 {[%clk 0:00:40.3]} 37. Qf8+
{[%clk 0:00:34.7]} 37... Kc7 {[%clk 0:00:36.9]} 38. Qe7+ {[%clk 0:00:31]} 38...
Bd7 {[%clk 0:00:37.8]} 39. Bg4 {[%clk 0:00:30.1]} 39... Qd6 {[%clk 0:00:39]} 40.
Qg7 {[%clk 0:00:28.8]} 40... Kc6 {[%clk 0:00:32.7]} 41. Be2 {[%clk 0:00:25.8]}
41... Kc5 {[%clk 0:00:27.7]} 42. Qg8 {[%clk 0:00:27.2]} 42... Be6 {[%clk
0:00:24.7]} 43. Qa8 {[%clk 0:00:24.5]} 43... Bd5 {[%clk 0:00:17.7]} 44. Qa7+
{[%clk 0:00:25.7]} 44... Qb6 {[%clk 0:00:18]} 45. Qe7+ {[%clk 0:00:26.4]} 45...
Kd4 {[%clk 0:00:19.5]} 46. Qa3 {[%clk 0:00:25.5]} 46... Qa5 {[%clk 0:00:16.4]}
47. Qb2+ {[%clk 0:00:22.3]} 47... Ke3 {[%clk 0:00:11.8]} 48. Bf1 {[%clk
0:00:21.4]} 48... Qd2 {[%clk 0:00:10.5]} 49. Qxe5 {[%clk 0:00:20.8]} 49... Kf2
{[%clk 0:00:07.2]} 50. Bxa6 {[%clk 0:00:20.2]} 50... Ke1 {[%clk 0:00:03.2]} 51.
Qa1+ {[%clk 0:00:19.8]} 51... Qd1 {[%clk 0:00:03.5]} 52. Qc3+ {[%clk 0:00:21.3]}
52... Qd2 {[%clk 0:00:04.9]} 53. Qf6 {[%clk 0:00:22.2]} 53... Qd1 {[%clk
0:00:03.4]} 54. Qf1+ {[%clk 0:00:22.5]} 54... Kd2 {[%clk 0:00:04.9]} 55. Qf2+
{[%clk 0:00:24]} 55... Kc3 {[%clk 0:00:05.5]} 56. Qc5+ {[%clk 0:00:25.2]} 56...
Kb3 {[%clk 0:00:06.3]} 57. Bb5 {[%clk 0:00:25.8]} 57... Qd2 {[%clk 0:00:06.4]}
58. Bc6 {[%clk 0:00:25.3]} 58... Bxc6 {[%clk 0:00:06.2]} 59. Qxc6 {[%clk
0:00:26.8]} 59... e3 {[%clk 0:00:07.6]} 60. Qb5+ {[%clk 0:00:28.4]} 60... Ka3
{[%clk 0:00:08.5]} 61. a5 {[%clk 0:00:28.2]} 61... e2 {[%clk 0:00:09.9]} 62.
Qc5+ {[%clk 0:00:29.7]} 62... Ka4 {[%clk 0:00:10.7]} 63. a6 {[%clk 0:00:29]}
63... e1=Q {[%clk 0:00:11.6]} 64. a7 {[%clk 0:00:28.3]} 64... Qxg3+ {[%clk
0:00:10.3]} 65. Kxg3 {[%clk 0:00:27.9]} 65... Qf4+ {[%clk 0:00:11.4]} 0-1

[Event "*** Qualifier 1: Titled Tuesday 3|2 Blitz"]
[Site "Chess.com"]
[Date "2017.04.04"]
[Round "2"]
[White "Tirantes"]
[Black "Vamostodorecto"]
[Result "0-1"]
[WhiteElo "2192"]
[BlackElo "2349"]
[TimeControl "180+2"]
[EndTime "13:27:05 PDT"]
[Termination "Vamostodorecto won by checkmate"]

1. e4 {[%clk 0:03:02]} 1... e5 {[%clk 0:02:59.4]} 2. Nf3 {[%clk 0:03:02.2]} 2...
Nc6 {[%clk 0:02:58.8]} 3. Bb5 {[%clk 0:03:02.5]} 3... a6 {[%clk 0:02:56.7]} 4.
Ba4 {[%clk 0:03:02.7]} 4... Nf6 {[%clk 0:02:56.8]} 5. O-O {[%clk 0:03:03.4]}
5... b5 {[%clk 0:02:58]} 6. Bb3 {[%clk 0:03:03.3]} 6... Bb7 {[%clk 0:02:59.5]}
7. d3 {[%clk 0:03:00.7]} 7... Bc5 {[%clk 0:02:59]} 8. Be3 {[%clk 0:02:58.5]}
8... d6 {[%clk 0:02:58.2]} 9. a3 {[%clk 0:02:55.1]} 9... O-O {[%clk 0:02:56.8]}
10. Nc3 {[%clk 0:02:54]} 10... Nd7 {[%clk 0:02:56.9]} 11. Ba2 {[%clk 0:02:47.6]}
11... Ne7 {[%clk 0:02:56.8]} 12. Qd2 {[%clk 0:02:42.7]} 12... Kh8 {[%clk
0:02:55.5]} 13. d4 {[%clk 0:02:42]} 13... exd4 {[%clk 0:02:55]} 14. Nxd4 {[%clk
0:02:40.9]} 14... Ne5 {[%clk 0:02:33.9]} 15. Rae1 {[%clk 0:02:40.7]} 15... Ng4
{[%clk 0:02:17.8]} 16. Bg5 {[%clk 0:02:38.4]} 16... Qd7 {[%clk 0:02:10]} 17. h3
{[%clk 0:02:35.6]} 17... Ne5 {[%clk 0:02:00.4]} 18. Kh1 {[%clk 0:02:36.4]} 18...
f6 {[%clk 0:01:55.3]} 19. Be3 {[%clk 0:02:33.3]} 19... f5 {[%clk 0:01:38.8]} 20.
Be6 {[%clk 0:02:30]} 20... Qe8 {[%clk 0:01:37.4]} 21. Nxf5 {[%clk 0:02:21]}
21... Nxf5 {[%clk 0:00:46.1]} 22. Bxf5 {[%clk 0:02:20.9]} 22... Qh5 {[%clk
0:00:44]} 23. f4 {[%clk 0:02:00.3]} 23... Nc4 {[%clk 0:00:44.3]} 24. Bg4 {[%clk
0:01:28.5]} 24... Nxd2 {[%clk 0:00:28.5]} 25. Bxh5 {[%clk 0:01:13.3]} 25... Bxe3
{[%clk 0:00:28.6]} 26. Rxe3 {[%clk 0:01:07.1]} 26... Nxf1 {[%clk 0:00:29]} 27.
Rd3 {[%clk 0:00:51.6]} 27... Rxf4 {[%clk 0:00:27.6]} 28. Bf3 {[%clk 0:00:49.4]}
28... Ng3+ {[%clk 0:00:26.9]} 29. Kh2 {[%clk 0:00:47.9]} 29... Nxe4 {[%clk
0:00:26.6]} 30. g3 {[%clk 0:00:37.3]} 30... Rxf3 {[%clk 0:00:21.1]} 31. Rxf3
{[%clk 0:00:38.2]} 31... Nxc3 {[%clk 0:00:20.9]} 32. Rxc3 {[%clk 0:00:38.9]}
32... c5 {[%clk 0:00:21.7]} 33. Re3 {[%clk 0:00:37.5]} 33... Rb8 {[%clk
0:00:20.2]} 34. Re7 {[%clk 0:00:36.8]} 34... Kg8 {[%clk 0:00:21.2]} 35. g4
{[%clk 0:00:37.2]} 35... Kf8 {[%clk 0:00:22.2]} 36. Rd7 {[%clk 0:00:38]} 36...
d5 {[%clk 0:00:23.5]} 37. Kg3 {[%clk 0:00:38]} 37... d4 {[%clk 0:00:24.7]} 38.
Kf4 {[%clk 0:00:38.3]} 38... Bc6 {[%clk 0:00:22.8]} 39. Rc7 {[%clk 0:00:38.7]}
39... Rb6 {[%clk 0:00:23.6]} 40. Ke5 {[%clk 0:00:38.4]} 40... h6 {[%clk
0:00:22.1]} 41. h4 {[%clk 0:00:38.5]} 41... Kg8 {[%clk 0:00:22]} 42. g5 {[%clk
0:00:37.4]} 42... hxg5 {[%clk 0:00:22.3]} 43. hxg5 {[%clk 0:00:38.2]} 43... Kh7
{[%clk 0:00:23.9]} 44. Kf5 {[%clk 0:00:39.1]} 44... Bg2 {[%clk 0:00:19.8]} 45.
Rxc5 {[%clk 0:00:33.6]} 45... Bh3+ {[%clk 0:00:19.6]} 46. Ke5 {[%clk 0:00:32.3]}
46... Kg6 {[%clk 0:00:18.6]} 47. Kxd4 {[%clk 0:00:32.7]} 47... Bf5 {[%clk
0:00:19.2]} 48. b4 {[%clk 0:00:29.9]} 48... Kxg5 {[%clk 0:00:19.6]} 49. c4
{[%clk 0:00:30]} 49... bxc4 {[%clk 0:00:19.9]} 50. Kxc4 {[%clk 0:00:29.1]} 50...
Kf6 {[%clk 0:00:20.1]} 51. a4 {[%clk 0:00:29]} 51... g5 {[%clk 0:00:20.2]} 52.
b5 {[%clk 0:00:26.9]} 52... axb5+ {[%clk 0:00:22.1]} 53. axb5 {[%clk 0:00:27.9]}
53... g4 {[%clk 0:00:21.1]} 54. Kd4 {[%clk 0:00:23.5]} 54... Re6 {[%clk
0:00:20.1]} 55. Rc3 {[%clk 0:00:20.9]} 55... Kg5 {[%clk 0:00:20]} 56. Kc5 {[%clk
0:00:21.2]} 56... Re8 {[%clk 0:00:16.3]} 57. Kd6 {[%clk 0:00:19.9]} 57... Kf4
{[%clk 0:00:15.3]} 58. b6 {[%clk 0:00:20.1]} 58... g3 {[%clk 0:00:13.7]} 59. b7
{[%clk 0:00:20.5]} 59... g2 {[%clk 0:00:08.1]} 60. Rc1 {[%clk 0:00:21.3]} 60...
Be4 {[%clk 0:00:05.3]} 61. Re1 {[%clk 0:00:19.8]} 61... Bxb7 {[%clk 0:00:05.2]}
62. Rxe8 {[%clk 0:00:19.6]} 62... g1=Q {[%clk 0:00:06.2]} 63. Rf8+ {[%clk
0:00:20.5]} 63... Ke3 {[%clk 0:00:06.8]} 64. Re8+ {[%clk 0:00:20.9]} 64... Be4
{[%clk 0:00:07.5]} 65. Ke7 {[%clk 0:00:20.9]} 65... Qg7+ {[%clk 0:00:07.5]} 66.
Kd8 {[%clk 0:00:19]} 66... Qg6 {[%clk 0:00:09.4]} 67. Ke7 {[%clk 0:00:18.8]}
67... Qg5+ {[%clk 0:00:09.1]} 68. Kd7 {[%clk 0:00:17.4]} 68... Qd5+ {[%clk
0:00:11]} 69. Ke7 {[%clk 0:00:17.9]} 69... Qc6 {[%clk 0:00:12.9]} 70. Rd8 {[%clk
0:00:16.4]} 70... Qb7+ {[%clk 0:00:13.7]} 71. Rd7 {[%clk 0:00:16.7]} 71... Qb5
{[%clk 0:00:15.6]} 72. Rd6 {[%clk 0:00:17.2]} 72... Qc5 {[%clk 0:00:15.9]} 73.
Ke6 {[%clk 0:00:16.5]} 73... Kf4 {[%clk 0:00:16.2]} 74. Rd8 {[%clk 0:00:12.5]}
74... Bf5+ {[%clk 0:00:17.2]} 75. Kf7 {[%clk 0:00:12.3]} 75... Qc7+ {[%clk
0:00:17.8]} 76. Ke8 {[%clk 0:00:10.4]} 76... Bg6+ {[%clk 0:00:18.5]} 77. Kf8
{[%clk 0:00:09.9]} 77... Qf7# {[%clk 0:00:19.3]} 0-1

[Event "*** Qualifier 1: Titled Tuesday 3|2 Blitz"]
[Site "Chess.com"]
[Date "2017.04.04"]
[Round "2"]
[White "michaelk123"]
[Black "Th3ChessViking"]
[Result "0-1"]
[WhiteElo "2191"]
[BlackElo "2316"]
[TimeControl "180+2"]
[EndTime "13:27:28 PDT"]
[Termination "Th3ChessViking won by checkmate"]

1. d4 {[%clk 0:03:02]} 1... Nf6 {[%clk 0:02:57.6]} 2. Bf4 {[%clk 0:03:01.7]}
2... e6 {[%clk 0:02:57.8]} 3. Nd2 {[%clk 0:02:59.3]} 3... c5 {[%clk 0:02:59.2]}
4. e3 {[%clk 0:02:53]} 4... cxd4 {[%clk 0:02:57.3]} 5. exd4 {[%clk 0:02:52.9]}
5... Be7 {[%clk 0:02:58.6]} 6. c3 {[%clk 0:02:40.4]} 6... O-O {[%clk 0:02:56]}
7. h3 {[%clk 0:02:40.6]} 7... b6 {[%clk 0:02:57.2]} 8. Ngf3 {[%clk 0:02:37.2]}
8... Bb7 {[%clk 0:02:58.6]} 9. Bd3 {[%clk 0:02:34.4]} 9... d6 {[%clk 0:02:59.8]}
10. O-O {[%clk 0:02:33.8]} 10... a6 {[%clk 0:03:01.2]} 11. Bh2 {[%clk 0:02:27]}
11... Nbd7 {[%clk 0:03:02.5]} 12. Re1 {[%clk 0:02:27.2]} 12... Qc7 {[%clk
0:03:03.3]} 13. a4 {[%clk 0:02:23.6]} 13... Rfe8 {[%clk 0:03:04.2]} 14. Nc4
{[%clk 0:02:23.5]} 14... Bf8 {[%clk 0:03:04.4]} 15. Qe2 {[%clk 0:02:11.2]} 15...
Qc6 {[%clk 0:03:00.5]} 16. Ne3 {[%clk 0:01:56.7]} 16... g6 {[%clk 0:02:39]} 17.
Nc4 {[%clk 0:01:54]} 17... Nh5 {[%clk 0:02:35]} 18. Qd2 {[%clk 0:01:45.3]} 18...
Rad8 {[%clk 0:02:00.5]} 19. Bf1 {[%clk 0:01:25.6]} 19... Nhf6 {[%clk 0:01:21.8]}
20. Qf4 {[%clk 0:01:19.2]} 20... Nd5 {[%clk 0:01:06.5]} 21. Qg5 {[%clk 0:01:08]}
21... h6 {[%clk 0:01:05.4]} 22. Qd2 {[%clk 0:01:08.2]} 22... N7f6 {[%clk
0:01:01.3]} 23. Bd3 {[%clk 0:00:39]} 23... Nh5 {[%clk 0:00:48.5]} 24. Bf1 {[%clk
0:00:39.8]} 24... Nhf6 {[%clk 0:00:47.6]} 25. Bg3 {[%clk 0:00:31.1]} 25... Nh5
{[%clk 0:00:48.5]} 26. Bh2 {[%clk 0:00:32.3]} 26... Bg7 {[%clk 0:00:47.9]} 27.
Qc1 {[%clk 0:00:22.6]} 27... Kh7 {[%clk 0:00:43.1]} 28. Qc2 {[%clk 0:00:22.6]}
28... Bf8 {[%clk 0:00:37.8]} 29. Qd2 {[%clk 0:00:21.4]} 29... Ndf6 {[%clk
0:00:33.8]} 30. Ne3 {[%clk 0:00:20.3]} 30... Ne4 {[%clk 0:00:34.1]} 31. Qc2
{[%clk 0:00:18.8]} 31... Nef6 {[%clk 0:00:36]} 32. Bd3 {[%clk 0:00:19]} 32...
Qc7 {[%clk 0:00:33.7]} 33. Qe2 {[%clk 0:00:19.8]} 33... Ra8 {[%clk 0:00:33.1]}
34. Nd2 {[%clk 0:00:18.7]} 34... Qc6 {[%clk 0:00:30.5]} 35. Nf3 {[%clk
0:00:18.1]} 35... Kg8 {[%clk 0:00:22.4]} 36. Bc2 {[%clk 0:00:17.6]} 36... Qc7
{[%clk 0:00:22.3]} 37. Ng4 {[%clk 0:00:17.5]} 37... Nd5 {[%clk 0:00:19.1]} 38.
Qd2 {[%clk 0:00:17.2]} 38... Kh7 {[%clk 0:00:20.3]} 39. Be4 {[%clk 0:00:17]}
39... Rac8 {[%clk 0:00:20.9]} 40. Bc2 {[%clk 0:00:17.8]} 40... Rcd8 {[%clk
0:00:19.9]} 41. Be4 {[%clk 0:00:18.5]} 41... Bg7 {[%clk 0:00:19.1]} 42. Bc2
{[%clk 0:00:19.3]} 42... f5 {[%clk 0:00:20.1]} 43. Ne3 {[%clk 0:00:18.7]} 43...
Ndf4 {[%clk 0:00:21.5]} 44. Qd1 {[%clk 0:00:18.4]} 44... Qc6 {[%clk 0:00:21.2]}
45. Bxf4 {[%clk 0:00:13.9]} 45... Nxf4 {[%clk 0:00:23.1]} 46. Kh2 {[%clk
0:00:15]} 46... e5 {[%clk 0:00:22.2]} 47. d5 {[%clk 0:00:14.4]} 47... Nxd5
{[%clk 0:00:22.8]} 48. Nxd5 {[%clk 0:00:13.4]} 48... Qxd5 {[%clk 0:00:24.7]} 49.
Qe2 {[%clk 0:00:14.8]} 49... e4 {[%clk 0:00:23]} 50. Nd4 {[%clk 0:00:12.9]}
50... Bxd4 {[%clk 0:00:20.7]} 51. cxd4 {[%clk 0:00:14.3]} 51... Qxd4 {[%clk
0:00:22.6]} 52. Bb3 {[%clk 0:00:14.3]} 52... Qe5+ {[%clk 0:00:22.1]} 53. g3
{[%clk 0:00:15.4]} 53... d5 {[%clk 0:00:23.2]} 54. Rac1 {[%clk 0:00:16.3]} 54...
Re7 {[%clk 0:00:24]} 55. Rc2 {[%clk 0:00:15.7]} 55... d4 {[%clk 0:00:25]} 56.
Qd2 {[%clk 0:00:15.7]} 56... d3 {[%clk 0:00:24.2]} 57. Rc3 {[%clk 0:00:16.4]}
57... h5 {[%clk 0:00:25.1]} 58. h4 {[%clk 0:00:16.2]} 58... Qd4 {[%clk
0:00:24.8]} 59. Re3 {[%clk 0:00:16.6]} 59... Red7 {[%clk 0:00:24.8]} 60. Rc1
{[%clk 0:00:15.2]} 60... Rf8 {[%clk 0:00:24.9]} 61. Ree1 {[%clk 0:00:14.8]}
61... Qe5 {[%clk 0:00:22.8]} 62. Qb4 {[%clk 0:00:12.2]} 62... Qf6 {[%clk
0:00:18.7]} 63. Be6 {[%clk 0:00:11.4]} 63... Rg7 {[%clk 0:00:19.2]} 64. Qxb6
{[%clk 0:00:10]} 64... f4 {[%clk 0:00:19]} 65. Rc7 {[%clk 0:00:06.8]} 65... d2
{[%clk 0:00:19.2]} 66. Rd1 {[%clk 0:00:06.9]} 66... fxg3+ {[%clk 0:00:13.1]} 67.
fxg3 {[%clk 0:00:07.5]} 67... Qf2+ {[%clk 0:00:14]} 68. Qxf2 {[%clk 0:00:07.9]}
68... Rxf2+ {[%clk 0:00:15.9]} 69. Kg1 {[%clk 0:00:09.8]} 69... e3 {[%clk
0:00:16.5]} 70. Rxg7+ {[%clk 0:00:09.8]} 70... Kxg7 {[%clk 0:00:18.4]} 71. Bc4
{[%clk 0:00:10.4]} 71... Rg2+ {[%clk 0:00:12.3]} 72. Kf1 {[%clk 0:00:08.9]}
72... Rxg3 {[%clk 0:00:13.2]} 73. Be2 {[%clk 0:00:07]} 73... Rh3 {[%clk
0:00:13.1]} 74. Bd3 {[%clk 0:00:06.6]} 74... Bf3 {[%clk 0:00:11.3]} 75. Be2
{[%clk 0:00:05.5]} 75... Rh1# {[%clk 0:00:10.7]} 0-1